[Event "25th Abu Dhabi Master 2018"]
[Site "Abu Dhabi"]
[Date "2018.08.08"]
[Round "2"]
[White "Navalgund, Niranjan"]
[Black "Panda, Sambit"]
[Result "1/2-1/2"]
[ECO "E06"]
[WhiteElo "2255"]
[BlackElo "2043"]
[Annotator "NA"]
[PlyCount "208"]
[EventDate "2018.08.05"]
[EventType "swiss"]
[EventCountry "UAE"]
[SourceTitle "playchess.com"]
[Source "ChessBase"]
[SourceQuality "1"]
[TimeControl "5400+30"]

1. d4 {[%emt 0:00:00]} d5 {[%emt 0:00:00]} 2. Nf3 {[%emt 0:00:00]} Nf6 {[%emt 0:00:04]} 3. c4 {[%emt 0:00:00]} e6 {[%emt 0:00:04]} 4. g3 {[%emt 0:00:00]} Be7 {[%emt 0:00:04]} 5. Bg2 {[%emt 0:00:00]} O-O {[%emt 0:00:06]} 6. O-O {[%emt 0:00:00]} dxc4 {[%emt 0:00:14]} 7. Qc2 {[%emt 0:00:00]} a6 {[%emt 0:00:07]} 8. a4 {[%emt 0:00:00]} Bd7 {[%emt 0:00:03]} 9. Rd1 {[%emt 0:00:02]} Bc6 {[%emt 0:00:18]} 10. Bg5 {[%emt 0:00:03]} a5 {[%emt 0:21:03]} 11. Nbd2 {[%emt 0:07:02]} Na6 {[%emt 0:03:56]} 12. Bxf6 {[%emt 0:11:36]} Bxf6 {[%emt 0:00:44]} 13. e4 {[%emt 0:00:35]} Qd7 {[%emt 0:15:32]} 14. Qxc4 {[%emt 0:27:09]} Rfd8 {[%emt 0:08:55]} 15. Bh3 {[%emt 0:12:15]} Nb4 {[%emt 0:14:28]} 16. d5 {[%emt 0:10:45]} exd5 {[%emt 0:03:54]} 17. Bxd7 {[%emt 0:00:23]} dxc4 {[%emt 0:00:05]} 18. Bxc6 {[%emt 0:00:06]} Bxb2 {[%emt 0:10:06]} 19. Bxb7 {[%emt 0:07:39]} Rab8 {[%emt 0:00:15]} 20. Rab1 {[%emt 0:02:31]} c3 {[%emt 0:01:39]} 21. Nb3 {[%emt 0:01:15]} Nd3 {[%emt 0:11:33]} 22. Ne1 {[%emt 0:07:21]} Nxe1 {[%emt 0:07:00]} 23. Rxd8+ {[%emt 0:00:29]} Rxd8 {[%emt 0:00:03]} 24. Rxe1 {[%emt 0:00:08]} Rb8 {[%emt 0:01:08]} 25. Bd5 {[%emt 0:00:49]} c6 {[%emt 0:00:27]} 26. Re2 {[%emt 0:08:55]} cxd5 {[%emt 0:00:31]} 27. exd5 {[%emt 0:00:02]} Kf8 {[%emt 0:00:37]} 28. Nxa5 {[%emt 0:01:38]} Re8 {[%emt 0:00:26]} 29. Rc2 {[%emt 0:00:26]} Re1+ {[%emt 0:00:33]} 30. Kg2 {[%emt 0:00:01]} Ra1 {[%emt 0:00:31]} 31. Nc4 {[%emt 0:01:30]} Rxa4 {[%emt 0:00:30]} 32. Nxb2 {[%emt 0:00:20]} cxb2 {[%emt 0:00:08]} 33. Rxb2 {[%emt 0:00:02]} Ra7 {[%emt 0:00:53]} 34. Kf3 {[%emt 0:00:54]} Ke7 {[%emt 0:00:09]} 35. Rb6 {[%emt 0:01:06]} Ra3+ {[%emt 0:00:50]} 36. Kg4 {[%emt 0:00:16]} Ra2 {[%emt 0:00:14]} 37. Rb7+ {[%emt 0:00:28]} Ke8 {[%emt 0:00:36]} 38. Kf3 {[%emt 0:00:24]} Rd2 {[%emt 0:00:36]} 39. Rb5 {[%emt 0:00:19]} Ra2 {[%emt 0:00:33]} 40. Ke3 {[%emt 0:00:42]} Ke7 {[%emt 0:00:29]} 41. Rb7+ {[%emt 0:00:34]} Kf6 {[%emt 0:00:26]} 42. h4 {[%emt 0:01:42]} Ra3+ {[%emt 0:00:31]} 43. Ke4 {[%emt 0:00:40]} Ra2 {[%emt 0:00:31]} 44. Kf3 {[%emt 0:00:54]} Rd2 {[%emt 0:00:27]} 45. Rd7 {[%emt 0:00:14]} h5 {[%emt 0:00:25]} 46. Ke3 {[%emt 0:00:43]} Rd1 {[%emt 0:00:40]} 47. f3 {[%emt 0:00:34]} Rg1 {[%emt 0:00:34]} 48. Kf4 {[%emt 0:00:19]} Ra1 {[%emt 0:00:25]} 49. Rd6+ {[%emt 0:00:24]} Ke7 {[%emt 0:00:06]} 50. Rb6 {[%emt 0:00:07]} g6 {[%emt 0:00:51]} 51. Rb7+ {[%emt 0:01:23]} Kf6 {[%emt 0:00:11]} 52. Rb4 {[%emt 0:00:25]} Rd1 {[%emt 0:00:52]} 53. Ke4 {[%emt 0:00:35]} Rg1 {[%emt 0:00:23]} 54. Ke3 {[%emt 0:00:42]} Ke5 {[%emt 0:00:33]} 55. Kf2 {[%emt 0:00:29]} Rd1 {[%emt 0:00:21]} 56. Rb7 {[%emt 0:00:02]} Rxd5 {[%emt 0:00:38]} 57. Rxf7 {[%emt 0:00:03]} Ke6 {[%emt 0:00:08]} 58. Rf4 {[%emt 0:00:33]} Rd2+ {[%emt 0:00:28]} 59. Ke3 {[%emt 0:00:35]} Ra2 {[%emt 0:00:56]} 60. Rb4 {[%emt 0:00:03]} Kf5 {[%emt 0:00:31]} 61. Rf4+ {[%emt 0:00:06]} Ke5 {[%emt 0:00:18]} 62. Re4+ {[%emt 0:01:32]} Kf5 {[%emt 0:00:07]} 63. Rd4 {[%emt 0:00:06]} Rg2 {[%emt 0:00:33]} 64. Ra4 {[%emt 0:00:16]} Rb2 {[%emt 0:00:33]} 65. Ra5+ {[%emt 0:00:01]} Kf6 {[%emt 0:00:06]} 66. Rd5 {[%emt 0:00:11]} Rb4 {[%emt 0:00:38]} 67. Rd4 {[%emt 0:00:14]} Rb5 {[%emt 0:00:28]} 68. Ra4 {[%emt 0:00:24]} Kf5 {[%emt 0:00:20]} 69. Rf4+ {[%emt 0:02:20]} Ke5 {[%emt 0:00:08]} 70. Rd4 {[%emt 0:00:14]} Rb3+ {[%emt 0:00:20]} 71. Rd3 {[%emt 0:00:02]} Rb4 {[%emt 0:00:25]} 72. Ra3 {[%emt 0:00:25]} Rb5 {[%emt 0:00:08]} 73. Rc3 {[%emt 0:00:58]} Kf5 {[%emt 0:00:11]} 74. Kd4 {[%emt 0:00:21]} Rb4+ {[%emt 0:00:23]} 75. Kc5 {[%emt 0:01:27]} Rb2 {[%emt 0:00:20]} 76. Kd6 {[%emt 0:00:11]} Kf6 {[%emt 0:01:18]} 77. Rc5 {[%emt 0:00:32]} Rb3 {[%emt 0:00:11]} 78. g4 {[%emt 0:00:25]} Rd3+ {[%emt 0:01:04]} 79. Rd5 {[%emt 0:00:19]} Rxf3 {[%emt 0:00:25]} 80. g5+ {[%emt 0:00:18]} Kg7 {[%emt 0:00:17]} 81. Ke6 {[%emt 0:01:08]} Rf4 {[%emt 0:01:03]} 82. Rd7+ {[%emt 0:00:25]} Kg8 {[%emt 0:00:02]} 83. Ra7 {[%emt 0:00:11]} Rf2 {[%emt 0:00:26]} 84. Ra4 {[%emt 0:00:19]} Kg7 {[%emt 0:00:21]} 85. Re4 {[%emt 0:00:02]} Rf1 {[%emt 0:00:36]} 86. Kd5 {[%emt 0:01:07]} Kf7 {[%emt 0:00:22]} 87. Ke5 {[%emt 0:01:07]} Rf5+ {[%emt 0:00:15]} 88. Kd6 {[%emt 0:00:04]} Kg7 {[%emt 0:00:11]} 89. Re7+ {[%emt 0:00:25]} Kg8 {[%emt 0:00:07]} 90. Re5 {[%emt 0:00:30]} Rf4 {[%emt 0:00:06]} 91. Ke6 {[%emt 0:00:36]} Kg7 {[%emt 0:00:26]} 92. Ra5 {[%emt 0:00:54]} Re4+ {[%emt 0:00:10]} 93. Kd5 {[%emt 0:00:13]} Rxh4 {[%emt 0:01:32]} 94. Ra7+ {[%emt 0:00:04]} Kf8 {[%emt 0:00:12]} 95. Ke5 {[%emt 0:00:54]} Rb4 {[%emt 0:00:06]} 96. Ra8+ {[%emt 0:00:39]} Kf7 {[%emt 0:00:06]} 97. Ra7+ {[%emt 0:00:04]} Kf8 {[%emt 0:00:04]} 98. Ra6 {[%emt 0:00:24]} Kf7 {[%emt 0:00:05]} 99. Ra7+ {[%emt 0:00:07]} Kf8 {[%emt 0:00:06]} 100. Ra8+ {[%emt 0:00:36]} Kf7 {[%emt 0:00:06]} 101. Ra7+ {[%emt 0:00:08]} Kf8 {[%emt 0:00:06]} 102. Ra6 {[%emt 0:00:27]} Kf7 {[%emt 0:00:05]} 103. Ra7+ {[%emt 0:00:11]} Kf8 {[%emt 0:00:12]} 104. Ra8+ {[%emt 0:00:12]} Ke7 {Ke4} 1/2-1/2

[Event "25th Abu Dhabi Master 2018"]
[Site "Abu Dhabi"]
[Date "2018.08.08"]
[Round "2"]
[White "Rayes, Abdul Kader"]
[Black "Al Zaabi, Sultan"]
[Result "1-0"]
[ECO "D71"]
[WhiteElo "2242"]
[BlackElo "1945"]
[Annotator "NA"]
[PlyCount "77"]
[EventDate "2018.08.05"]
[EventType "swiss"]
[EventCountry "UAE"]
[SourceTitle "playchess.com"]
[Source "ChessBase"]
[SourceQuality "1"]
[TimeControl "5400+30"]

1. c4 {[%emt 0:02:42]} Nf6 {[%emt 0:02:19]} 2. d4 {[%emt 0:00:56]} g6 {[%emt 0:00:07]} 3. g3 {[%emt 0:04:27]} c6 {[%emt 0:01:10]} 4. Nc3 {[%emt 0:02:58]} d5 {[%emt 0:00:15]} 5. Bg2 {[%emt 0:00:49]} Bg7 {[%emt 0:00:07]} 6. Nf3 {[%emt 0:02:26]} O-O {[%emt 0:00:08]} 7. O-O {[%emt 0:03:29]} Ne4 {[%emt 0:01:42]} 8. Qb3 {[%emt 0:08:32]} e6 {[%emt 0:22:04]} 9. Rd1 {[%emt 0:07:26]} Qe7 {[%emt 0:05:01]} 10. Bf4 {[%emt 0:23:32]} Nd7 {[%emt 0:05:47]} 11. Nxe4 {[%emt 0:05:28]} dxe4 {[%emt 0:00:16]} 12. Ne5 {[%emt 0:02:08]} f5 {[%emt 0:08:00]} 13. Nxd7 {[%emt 0:01:46]} Qxd7 {[%emt 0:04:27]} 14. f3 {[%emt 0:05:25]} exf3 {[%emt 0:02:28]} 15. Bxf3 {[%emt 0:02:15]} Qe7 {[%emt 0:04:17]} 16. c5 {[%emt 0:00:57]} Re8 {[%emt 0:00:44]} 17. Rac1 {[%emt 0:03:01]} Bf6 {[%emt 0:05:07]} 18. e3 {[%emt 0:01:06]} Kh8 {[%emt 0:03:13]} 19. Qc3 {[%emt 0:04:36]} e5 {[%emt 0:10:35]} 20. Bxe5 {[%emt 0:04:17]} Bxe5 {[%emt 0:00:24]} 21. dxe5 {[%emt 0:00:02]} Be6 {[%emt 0:05:08]} 22. b3 {[%emt 0:03:48]} Kg8 {[%emt 0:02:16]} 23. Kf2 {[%emt 0:04:35]} Bf7 {[%emt 0:06:02]} 24. Rd6 {[%emt 0:02:04]} Qxe5 {[%emt 0:00:50]} 25. Qd2 {[%emt 0:02:27]} Be6 {[%emt 0:01:29]} 26. Rc3 {[%emt 0:00:33]} Kg7 {[%emt 0:01:57]} 27. a3 {[%emt 0:00:44]} Re7 {[%emt 0:00:54]} 28. b4 {[%emt 0:00:11]} Rae8 {[%emt 0:00:43]} 29. a4 {[%emt 0:00:34]} Rc8 {[%emt 0:01:07]} 30. Qd4 {[%emt 0:00:44]} Qf6 {[%emt 0:02:59]} 31. b5 {[%emt 0:00:32]} cxb5 {[%emt 0:01:25]} 32. axb5 {[%emt 0:00:04]} Rcc7 {[%emt 0:00:24]} 33. Ra3 {[%emt 0:00:47]} Qxd4 {[%emt 0:02:19]} 34. exd4 {[%emt 0:00:03]} b6 {[%emt 0:00:11]} 35. Re3 {[%emt 0:00:54]} Kf7 {[%emt 0:00:15]} 36. Rexe6 {[%emt 0:00:29]} Rxe6 {[%emt 0:00:01]} 37. Bd5 {[%emt 0:00:12]} bxc5 {[%emt 0:01:03]} 38. Rxe6 {[%emt 0:00:08]} cxd4 {[%emt 0:00:14]} 39. Rc6+ {[%emt 0:00:38]} 1-0

[Event "25th Abu Dhabi Master 2018"]
[Site "Abu Dhabi"]
[Date "2018.08.08"]
[Round "2"]
[White "Pranavananda, V."]
[Black "Sindarov, Javokhir"]
[Result "0-1"]
[ECO "E82"]
[WhiteElo "2232"]
[BlackElo "2488"]
[Annotator "ChessBase"]
[PlyCount "76"]
[EventDate "2018.08.05"]
[EventType "swiss"]
[EventCountry "UAE"]
[SourceTitle "playchess.com"]
[Source "ChessBase"]
[SourceQuality "1"]
[TimeControl "5400+30"]

1. d4 {[%emt 0:01:11]} Nf6 {[%emt 0:00:00]} 2. c4 {[%emt 0:00:17]} g6 {[%emt 0:00:04]} 3. Nc3 {[%emt 0:00:49]} Bg7 {[%emt 0:00:06]} 4. e4 {[%emt 0:00:03]} d6 {[%emt 0:00:04]} 5. f3 {[%emt 0:01:16]} O-O {[%emt 0:00:59]} 6. Be3 {[%emt 0:00:03]} b6 {[%emt 0:00:33]} 7. Bd3 {[%emt 0:02:51]} a6 {[%emt 0:00:31]} 8. Nge2 {[%emt 0:00:40]} c5 {[%emt 0:01:17]} 9. e5 {[%emt 0:02:29]} dxe5 {[%emt 0:01:12]} 10. dxe5 {[%emt 0:00:04]} Nfd7 {[%emt 0:00:16]} 11. Be4 {[%emt 0:08:16]} Ra7 {[%emt 0:00:04]} 12. f4 {[%emt 0:00:04]} e6 {[%emt 0:18:53]} 13. h4 {[%emt 0:09:37]} f5 {[%emt 0:02:51]} 14. Bf3 {[%emt 0:07:37]} h5 {[%emt 0:00:27]} 15. Ng1 {[%emt 0:30:08]} Qe7 {[%emt 0:09:01]} 16. Nh3 {[%emt 0:08:11]} Rd8 {[%emt 0:01:11]} 17. Qe2 {[%emt 0:01:36]} Qxh4+ {[%emt 0:05:28]} 18. Bf2 {[%emt 0:06:54]} Qe7 {[%emt 0:00:16]} 19. Ng1 {[%emt 0:00:24]} Bh6 {[%emt 0:19:18]} 20. Bh4 {[%emt 0:04:59]} g5 {[%emt 0:00:14]} 21. Bf2 {[%emt 0:06:01]} Qg7 {[%emt 0:03:01]} 22. Rxh5 {[%emt 0:04:19]} g4 {[%emt 0:23:57]} 23. Bh4 {[%emt 0:00:02]} Bxf4 {[%emt 0:00:53]} 24. Bxd8 {[%emt 0:00:23]} Qg6 {[%emt 0:00:05]} 25. Rh1 {[%emt 0:02:05]} gxf3 {[%emt 0:00:48]} 26. Nxf3 {[%emt 0:00:18]} Nc6 {[%emt 0:00:15]} 27. Bh4 {[%emt 0:02:00]} Nd4 {[%emt 0:00:07]} 28. Nxd4 {[%emt 0:00:42]} cxd4 {[%emt 0:00:04]} 29. Nd1 {[%emt 0:00:23]} Nxe5 {[%emt 0:00:30]} 30. g3 {[%emt 0:00:40]} d3 {[%emt 0:02:47]} 31. Qf2 {[%emt 0:00:03]} Bh6 {[%emt 0:00:45]} 32. Qxb6 {[%emt 0:00:23]} Qg4 {[%emt 0:00:13]} 33. Qd8+ {[%emt 0:00:59]} Kh7 {[%emt 0:00:04]} 34. Nc3 {[%emt 0:00:28]} d2+ {[%emt 0:00:18]} 35. Kf1 {[%emt 0:00:29]} Qf3+ {[%emt 0:00:04]} 36. Kg1 {[%emt 0:00:01]} Ng4 {[%emt 0:00:42]} 37. Nd1 {[%emt 0:00:29]} Be3+ {[%emt 0:00:06]} 38. Nxe3 {[%emt 0:00:05]} Qf2# {[%emt 0:00:00]} 0-1

[Event "25th Abu Dhabi Master 2018"]
[Site "Abu Dhabi"]
[Date "2018.08.08"]
[Round "2"]
[White "Vantika, Agrawal"]
[Black "Wagh, Suyog"]
[Result "0-1"]
[ECO "D11"]
[WhiteElo "2225"]
[BlackElo "2356"]
[Annotator "NA"]
[PlyCount "156"]
[EventDate "2018.08.05"]
[EventType "swiss"]
[EventCountry "UAE"]
[SourceTitle "playchess.com"]
[Source "ChessBase"]
[SourceQuality "1"]
[TimeControl "5400+30"]

1. d4 {[%emt 0:00:01]} d5 {[%emt 0:00:20]} 2. c4 {[%emt 0:00:12]} c6 {[%emt 0:00:04]} 3. Nf3 {[%emt 0:00:20]} Nf6 {[%emt 0:00:09]} 4. e3 {[%emt 0:00:08]} a6 {[%emt 0:01:37]} 5. Bd3 {[%emt 0:06:15]} Bg4 {[%emt 0:00:32]} 6. Nbd2 {[%emt 0:02:07]} e6 {[%emt 0:05:10]} 7. b3 {[%emt 0:13:46]} Nbd7 {[%emt 0:00:49]} 8. Qc2 {[%emt 0:07:34]} Bd6 {[%emt 0:00:46]} 9. Bb2 {[%emt 0:00:42]} Qb8 {[%emt 0:01:25]} 10. O-O {[%emt 0:09:32]} Bh5 {[%emt 0:02:31]} 11. h3 {[%emt 0:03:36]} O-O {[%emt 0:01:26]} 12. Ng5 {[%emt 0:01:18]} Bg6 {[%emt 0:02:14]} 13. Bxg6 {[%emt 0:04:38]} hxg6 {[%emt 0:00:06]} 14. e4 {[%emt 0:05:35]} Bh2+ {[%emt 0:12:22]} 15. Kh1 {[%emt 0:04:26]} Bf4 {[%emt 0:00:52]} 16. Ndf3 {[%emt 0:01:49]} Bxg5 {[%emt 0:06:09]} 17. Nxg5 {[%emt 0:00:37]} Nxe4 {[%emt 0:01:56]} 18. Nxe4 {[%emt 0:00:17]} dxe4 {[%emt 0:00:04]} 19. Qxe4 {[%emt 0:00:05]} Re8 {[%emt 0:15:27]} 20. Rfd1 {[%emt 0:10:41]} Qd6 {[%emt 0:02:07]} 21. a4 {[%emt 0:11:02]} a5 {[%emt 0:03:03]} 22. Qe3 {[%emt 0:11:20]} Qc7 {[%emt 0:04:51]} 23. Ba3 {[%emt 0:02:40]} Rad8 {[%emt 0:01:09]} 24. Rac1 {[%emt 0:00:33]} Qb6 {[%emt 0:05:39]} 25. Bd6 {[%emt 0:01:36]} Nf6 {[%emt 0:00:35]} 26. Be5 {[%emt 0:01:35]} Rd7 {[%emt 0:00:18]} 27. Qf3 {[%emt 0:00:25]} Nh7 {[%emt 0:02:21]} 28. h4 {[%emt 0:00:37]} Qd8 {[%emt 0:01:17]} 29. Qg4 {[%emt 0:00:18]} Nf6 {[%emt 0:02:43]} 30. Qf4 {[%emt 0:00:39]} Nh5 {[%emt 0:00:43]} 31. Qg4 {[%emt 0:00:12]} Kh7 {[%emt 0:00:11]} 32. Rc3 {[%emt 0:00:44]} f6 {[%emt 0:00:39]} 33. Bh2 {[%emt 0:00:32]} f5 {[%emt 0:03:30]} 34. Qh3 {[%emt 0:00:35]} Rxd4 {[%emt 0:00:36]} 35. Rcd3 {[%emt 0:00:28]} Rxd3 {[%emt 0:00:41]} 36. Rxd3 {[%emt 0:00:23]} Qf6 {[%emt 0:00:09]} 37. Qf3 {[%emt 0:00:37]} Qxh4 {[%emt 0:03:07]} 38. Kg1 {[%emt 0:00:11]} Qe7 {[%emt 0:05:43]} 39. Bd6 {[%emt 0:00:40]} Qf7 {[%emt 0:00:09]} 40. Be5 {[%emt 0:00:30]} Nf6 {[%emt 0:00:11]} 41. Qh3+ {[%emt 0:00:40]} Kg8 {[%emt 0:00:10]} 42. Qh4 {[%emt 0:00:26]} Nh5 {[%emt 0:04:29]} 43. f4 {[%emt 0:00:35]} Qe7 {[%emt 0:02:59]} 44. Qxe7 {[%emt 0:00:20]} Rxe7 {[%emt 0:00:01]} 45. Rd8+ {[%emt 0:00:20]} Kh7 {[%emt 0:00:09]} 46. Ra8 {[%emt 0:00:46]} g5 {[%emt 0:01:02]} 47. fxg5 {[%emt 0:00:31]} Kg6 {[%emt 0:00:07]} 48. Rxa5 {[%emt 0:00:34]} Kxg5 {[%emt 0:01:17]} 49. Bd6 {[%emt 0:00:29]} Rd7 {[%emt 0:00:15]} 50. c5 {[%emt 0:00:13]} Nf6 {[%emt 0:04:34]} 51. Ra7 {[%emt 0:00:11]} Nd5 {[%emt 0:00:19]} 52. Kf2 {[%emt 0:00:46]} Nb4 {[%emt 0:02:25]} 53. Ra8 {[%emt 0:00:48]} e5 {[%emt 0:00:44]} 54. Ke3 {[%emt 0:00:29]} e4 {[%emt 0:00:21]} 55. Kd4 {[%emt 0:00:25]} Kg4 {[%emt 0:00:46]} 56. Kc4 {[%emt 0:00:38]} Nd5 {[%emt 0:00:39]} 57. g3 {[%emt 0:00:29]} Kf3 {[%emt 0:00:43]} 58. Re8 {[%emt 0:00:26]} g5 {[%emt 0:01:21]} 59. b4 {[%emt 0:00:23]} e3 {[%emt 0:01:05]} 60. b5 {[%emt 0:00:20]} Kf2 {[%emt 0:00:56]} 61. Kd3 {[%emt 0:00:41]} f4 {[%emt 0:00:12]} 62. gxf4 {[%emt 0:00:28]} gxf4 {[%emt 0:01:10]} 63. Rh8 {[%emt 0:00:42]} f3 {[%emt 0:00:26]} 64. a5 {[%emt 0:00:31]} cxb5 {[%emt 0:00:46]} 65. Rh2+ {[%emt 0:00:29]} Kg1 {[%emt 0:00:08]} 66. Rh6 {[%emt 0:00:30]} f2 {[%emt 0:00:49]} 67. Rg6+ {[%emt 0:00:17]} Kf1 {[%emt 0:00:09]} 68. Rh6 {[%emt 0:00:44]} Kg1 {[%emt 0:01:03]} 69. Rg6+ {[%emt 0:00:20]} Kf1 {[%emt 0:00:01]} 70. Rh6 {[%emt 0:00:39]} Rg7 {[%emt 0:00:17]} 71. c6 {[%emt 0:00:32]} Kg1 {[%emt 0:00:50]} 72. Bh2+ {[%emt 0:00:30]} Kg2 {[%emt 0:00:07]} 73. cxb7 {[%emt 0:00:30]} f1=Q+ {[%emt 0:00:05]} 74. Ke4 {[%emt 0:00:29]} Qc4+ {[%emt 0:00:14]} 75. Ke5 {[%emt 0:00:28]} Rxb7 {[%emt 0:00:08]} 76. a6 {[%emt 0:00:31]} Re7+ {[%emt 0:00:13]} 77. Kd6 {[%emt 0:00:09]} Qc7+ {[%emt 0:00:05]} 78. Kxd5 {[%emt 0:00:08]} Qxh2 {[%emt 0:00:04]} 0-1

[Event "25th Abu Dhabi Master 2018"]
[Site "Abu Dhabi"]
[Date "2018.08.08"]
[Round "2"]
[White "Sharma, Dushyant"]
[Black "Tokhirjonova, Gulrukhbegim"]
[Result "1-0"]
[ECO "A45"]
[WhiteElo "2221"]
[BlackElo "2350"]
[Annotator "NA"]
[PlyCount "99"]
[EventDate "2018.08.05"]
[EventType "swiss"]
[EventCountry "UAE"]
[SourceTitle "playchess.com"]
[Source "ChessBase"]
[SourceQuality "1"]
[TimeControl "5400+30"]

1. d4 {[%emt 0:00:00]} Nf6 {[%emt 0:00:00]} 2. Bf4 {[%emt 0:00:20]} d5 {[%emt 0:00:55]} 3. e3 {[%emt 0:01:29]} e6 {[%emt 0:01:01]} 4. Nf3 {[%emt 0:03:22]} c5 {[%emt 0:00:37]} 5. c3 {[%emt 0:00:16]} Nc6 {[%emt 0:00:35]} 6. Nbd2 {[%emt 0:00:16]} Be7 {[%emt 0:00:24]} 7. Ne5 {[%emt 0:01:31]} O-O {[%emt 0:03:55]} 8. Bd3 {[%emt 0:01:12]} Nd7 {[%emt 0:06:59]} 9. Bg3 {[%emt 0:05:21]} Ndxe5 {[%emt 0:04:06]} 10. dxe5 {[%emt 0:02:31]} a6 {[%emt 0:03:13]} 11. Nf3 {[%emt 0:13:22]} b5 {[%emt 0:01:34]} 12. h4 {[%emt 0:01:10]} h6 {[%emt 0:20:45]} 13. Bc2 {[%emt 0:14:58]} c4 {[%emt 0:02:47]} 14. Bb1 {[%emt 0:04:41]} f5 {[%emt 0:03:14]} 15. exf6 {[%emt 0:14:11]} Bxf6 {[%emt 0:00:33]} 16. Qc2 {[%emt 0:01:29]} e5 {[%emt 0:03:04]} 17. Qh7+ {[%emt 0:23:12]} Kf7 {[%emt 0:00:44]} 18. Qg6+ {[%emt 0:00:09]} Ke7 {[%emt 0:01:43]} 19. Qh5 {[%emt 0:02:26]} Qd6 {[%emt 0:29:05]} 20. Bg6 {[%emt 0:00:59]} Qe6 {[%emt 0:02:22]} 21. Rd1 {[%emt 0:05:06]} Rd8 {[%emt 0:04:26]} 22. e4 {[%emt 0:01:31]} Kf8 {[%emt 0:04:46]} 23. O-O {[%emt 0:00:44]} d4 {[%emt 0:03:50]} 24. cxd4 {[%emt 0:00:41]} exd4 {[%emt 0:00:02]} 25. e5 {[%emt 0:00:50]} Be7 {[%emt 0:00:06]} 26. Ng5 {[%emt 0:00:40]} Bxg5 {[%emt 0:01:41]} 27. hxg5 {[%emt 0:00:06]} Qg4 {[%emt 0:00:50]} 28. gxh6 {[%emt 0:00:36]} Qxh5 {[%emt 0:00:00]} 29. hxg7+ {[%emt 0:00:02]} Kxg7 {[%emt 0:00:00]} 30. Bxh5 {[%emt 0:00:05]} d3 {[%emt 0:00:09]} 31. Bh4 {[%emt 0:01:05]} Rf8 {[%emt 0:00:35]} 32. f4 {[%emt 0:00:16]} Nd4 {[%emt 0:01:14]} 33. Bf6+ {[%emt 0:01:17]} Kh6 {[%emt 0:00:36]} 34. g4 {[%emt 0:00:11]} Rg8 {[%emt 0:00:35]} 35. Kf2 {[%emt 0:00:38]} Bxg4 {[%emt 0:00:27]} 36. Bf7 {[%emt 0:00:33]} Bh3 {[%emt 0:00:35]} 37. Rh1 {[%emt 0:00:41]} Rg2+ {[%emt 0:00:03]} 38. Ke3 {[%emt 0:00:25]} Nf5+ {[%emt 0:00:39]} 39. Ke4 {[%emt 0:00:34]} Re2+ {[%emt 0:00:13]} 40. Kd5 {[%emt 0:00:28]} Re3 {[%emt 0:00:17]} 41. Be6 {[%emt 0:00:20]} Kg6 {[%emt 0:01:19]} 42. Rdg1+ {[%emt 0:00:23]} Rg3 {[%emt 0:00:25]} 43. Bxf5+ {[%emt 0:00:35]} Kxf5 {[%emt 0:00:02]} 44. Rxg3 {[%emt 0:00:08]} Bg4 {[%emt 0:00:00]} 45. Rxg4 {[%emt 0:01:08]} Kxg4 {[%emt 0:00:02]} 46. Ke4 {[%emt 0:00:20]} Kg3 {[%emt 0:00:12]} 47. Ke3 {[%emt 0:00:21]} Kg4 {[%emt 0:00:47]} 48. Rh8 {[%emt 0:00:42]} Ra7 {[%emt 0:00:05]} 49. e6 {[%emt 0:00:16]} Kf5 {[%emt 0:00:18]} 50. e7 {[%emt 0:00:18]} 1-0

[Event "25th Abu Dhabi Master 2018"]
[Site "Abu Dhabi"]
[Date "2018.08.08"]
[Round "2"]
[White "Adnan, Habib Hana"]
[Black "Zuo, Yifan"]
[Result "0-1"]
[ECO "A46"]
[WhiteElo "2220"]
[BlackElo "2334"]
[Annotator "NA"]
[PlyCount "94"]
[EventDate "2018.08.05"]
[EventType "swiss"]
[EventCountry "UAE"]
[SourceTitle "playchess.com"]
[Source "ChessBase"]
[SourceQuality "1"]
[TimeControl "5400+30"]

1. d4 {[%emt 0:00:11]} Nf6 {[%emt 0:00:00]} 2. Nf3 {[%emt 0:00:12]} e6 {[%emt 0:00:45]} 3. Bf4 {[%emt 0:00:21]} c5 {[%emt 0:00:46]} 4. e3 {[%emt 0:00:06]} b6 {[%emt 0:00:23]} 5. Nbd2 {[%emt 0:00:08]} Bb7 {[%emt 0:00:10]} 6. Nc4 {[%emt 0:00:12]} cxd4 {[%emt 0:07:03]} 7. Qxd4 {[%emt 0:12:02]} Nc6 {[%emt 0:17:20]} 8. Nd6+ {[%emt 0:09:04]} Bxd6 {[%emt 0:00:22]} 9. Qxd6 {[%emt 0:00:07]} Ne4 {[%emt 0:02:04]} 10. Qd3 {[%emt 0:08:44]} d5 {[%emt 0:02:21]} 11. Be2 {[%emt 0:06:49]} O-O {[%emt 0:01:40]} 12. O-O {[%emt 0:01:04]} Qf6 {[%emt 0:01:21]} 13. c4 {[%emt 0:08:50]} Qxb2 {[%emt 0:07:10]} 14. cxd5 {[%emt 0:05:34]} exd5 {[%emt 0:00:25]} 15. Rfb1 {[%emt 0:05:31]} Qf6 {[%emt 0:01:04]} 16. Rc1 {[%emt 0:01:29]} Rad8 {[%emt 0:04:57]} 17. Rab1 {[%emt 0:01:17]} h6 {[%emt 0:01:06]} 18. h3 {[%emt 0:05:13]} Ba8 {[%emt 0:02:20]} 19. Qc2 {[%emt 0:02:28]} Nc5 {[%emt 0:04:32]} 20. Bc7 {[%emt 0:02:52]} Rc8 {[%emt 0:01:04]} 21. Bh2 {[%emt 0:02:13]} d4 {[%emt 0:01:51]} 22. e4 {[%emt 0:02:48]} Qe6 {[%emt 0:05:36]} 23. e5 {[%emt 0:02:55]} d3 {[%emt 0:09:35]} 24. Bxd3 {[%emt 0:01:12]} Nxd3 {[%emt 0:02:05]} 25. Qxd3 {[%emt 0:00:07]} Nb4 {[%emt 0:00:21]} 26. Qb3 {[%emt 0:01:04]} Nxa2 {[%emt 0:04:02]} 27. Rxc8 {[%emt 0:01:13]} Rxc8 {[%emt 0:00:25]} 28. Qxe6 {[%emt 0:00:53]} fxe6 {[%emt 0:00:03]} 29. Nd4 {[%emt 0:00:05]} Bd5 {[%emt 0:00:58]} 30. Bf4 {[%emt 0:00:39]} Nc3 {[%emt 0:02:38]} 31. Rc1 {[%emt 0:00:38]} Rc4 {[%emt 0:00:18]} 32. Bd2 {[%emt 0:00:13]} Rxd4 {[%emt 0:01:35]} 33. Bxc3 {[%emt 0:00:06]} Rc4 {[%emt 0:00:05]} 34. Bb2 {[%emt 0:00:59]} Rxc1+ {[%emt 0:00:28]} 35. Bxc1 {[%emt 0:00:04]} Kf7 {[%emt 0:00:14]} 36. f4 {[%emt 0:00:45]} Ke8 {[%emt 0:00:36]} 37. Kf2 {[%emt 0:00:14]} Kd7 {[%emt 0:00:19]} 38. g4 {[%emt 0:00:31]} Be4 {[%emt 0:01:28]} 39. Ke3 {[%emt 0:00:12]} Bg2 {[%emt 0:00:09]} 40. h4 {[%emt 0:00:38]} g6 {[%emt 0:05:45]} 41. f5 {[%emt 0:00:52]} exf5 {[%emt 0:02:56]} 42. gxf5 {[%emt 0:00:09]} gxf5 {[%emt 0:00:05]} 43. Kf2 {[%emt 0:00:05]} Bc6 {[%emt 0:00:30]} 44. Bxh6 {[%emt 0:00:39]} Ke6 {[%emt 0:00:03]} 45. Bf4 {[%emt 0:00:15]} Be8 {[%emt 0:00:01]} 46. Ke3 {[%emt 0:00:17]} Kd5 {[%emt 0:00:09]} 47. Kd3 {[%emt 0:00:37]} b5 {[%emt 0:01:47] Kd4+ Kxe5+} 0-1